Cogmind - Beta 13 @@@ ROGUE MODE // 2024.04.04 @ 19:11:16 Player: Cyurio Result: Destroyed by S-27 Virus with Autogun Performance ------------- Evolutions (3) 1500 Regions Visited (7) 1400 Robots Destroyed (40) 200 Value Destroyed (1246) 1246 Prototype IDs (0) 0 Alien Tech Used (0) 0 Bonus (244) 244 TOTAL SCORE: 4590 Bonus ------- Follower Combat Kills 60 Entered Garrisons 200 Friendly Fire -16 Cogmind --------- Core Integrity 0/700 Matter 285/300 Energy 94/100 System Corruption 11% Temperature Cool (0) Movement Core (50) Location -7/Garrison Parts ------- > --- POWER (1) -------- (None) > --- PROPULSION (4) --- (None) > --- UTILITY (5) ------ (None) > --- WEAPON (3) ------- Axe > --- INVENTORY (5) ---- System Shield Rocket Launcher Powered Hammer Peak State ------------ > --- POWER ------------ Light Nuclear Core > --- PROPULSION ------- Light Treads Improved Carbon-fiber Leg Improved Carbon-fiber Leg > --- UTILITY ---------- Large Storage Unit Targeting Computer Improved Melee Analysis Suite Improved Melee Analysis Suite Shield Generator > --- WEAPON ----------- Powered Hammer Powered Hammer Powered Hammer > --- INVENTORY -------- Wheel Small Storage Unit Huge Storage Unit Large Matter Pod Improved Melee Analysis Suite Microactuators Hardlight Generator System Shield System Shield Rocket Launcher Powered Hammer Axe [Rating: 39] Favorites ----------- Power Light Nuclear Core Engine Ion Engine Power Core Light Nuclear Core Propulsion Improved Treads Treads Improved Treads Leg Improved Carbon-fiber Leg Utility Targeting Computer Device Shield Generator Storage Small Storage Unit Processor Targeting Computer Weapon Heavy Assault Rifle Energy Gun Medium Laser Ballistic Gun Heavy Assault Rifle Launcher Rocket Launcher Impact Weapon Powered Hammer Slashing Weapon Axe Build | -11 -10 -10 -10 -9 -8 -7 -7 ------- Run | Yrd Mat Min Exi Min Mat Fac Gar Slots Evolved 6 | . . . . . 4 2 . Power . | . . . . . . . . Propulsion 2 | . . . . . 2 . . Utility 3 | . . . . . 1 2 . Weapon 1 | . . . . . 1 . . Parts Attached 31 | . 6 1 . 2 14 6 2 Power 3 | . . 1 . . 2 . . Engine 1 | . . . . . 1 . . Core 2 | . . 1 . . 1 . . Reactor . | . . . . . . . . Propulsion 9 | . 2 . . . 5 2 . Treads 7 | . 2 . . . 5 . . Leg 2 | . . . . . . 2 . Wheel . | . . . . . . . . Hover . | . . . . . . . . Flight . | . . . . . . . . Utility 10 | . 2 . . . 3 4 1 Device 3 | . . . . . . 3 . Storage 2 | . . . . . 2 . . Processor 5 | . 2 . . . 1 1 1 Hackware . | . . . . . . . . Protection . | . . . . . . . . Artifact . | . . . . . . . . Weapon 9 | . 2 . . 2 4 . 1 Energy Gun . | . . . . . . . . Energy Cannon . | . . . . . . . . Ballistic Gun 4 | . 2 . . 1 1 . . Ballistic Cannon . | . . . . . . . . Launcher 1 | . . . . 1 . . . Special Weapon . | . . . . . . . . Impact Weapon 3 | . . . . . 3 . . Slashing Weapon 1 | . . . . . . . 1 Piercing Weapon . | . . . . . . . . Special Melee Weapon . | . . . . . . . . Unidentified Prototypes . | . . . . . . . . Corrupted Parts 1 | . . . . . 1 . . System Corruption 1 | . . . . . 1 . . Parts Lost 18 | . . . . . 9 8 1 Power 2 | . . . . . 2 . . Propulsion 8 | . . . . . 4 4 . Utility 4 | . . . . . . 3 1 Weapon 4 | . . . . . 3 1 . Highest Loss Streak 6 | . . . . . 2 6 1 To Critical Strikes . | . . . . . . . . Average Slot Usage (%) 91 | . 98 100 100 100 92 73 7 Engine 4 | . 14 11 . . 5 . . Core 6 | . . 3 14 14 3 6 . Treads 24 | . 27 28 28 28 29 9 . Leg 1 | . . . . . . 4 . Device 1 | . . . . . . 6 . Storage 10 | . 14 14 14 14 9 6 . Processor 15 | . 12 14 14 14 17 19 3 Ballistic Gun 15 | . 27 28 28 25 9 . . Impact Weapon 9 | . . . . . 16 19 . Naked Turns 95 | . . . . . . 87 8 Heaviest Build 94 | 14 16 16 16 17 94 39 3 Greatest Support 92 | 20 46 46 46 46 92 43 3 Greatest Overweight (x) 4 | . 4 . . . 1 2 . Average Overweight (x) . | . . . . . . . . Largest Inventory Capacity 25 | . 8 8 8 8 25 15 5 Average Capacity 11 | . 8 8 8 8 15 13 5 Most Carried 13 | . 8 8 8 8 13 12 5 Average Carried 9 | . 7 8 8 8 11 9 3 Final Capacity 15 | 8 8 8 8 8 15 5 5 Final Carried 11 | 6 8 8 8 8 11 5 3 Class Distribution -------------------- 64% | Mutant 35% | Gladiator Dominant Class ---------------- Mutant | -10/Materials Mutant | -10/Mines Mutant | -10/Exiles Mutant | -9/Mines Gladiator | -8/Materials Gladiator | -7/Factory Gladiator | -7/Garrison Resources | -11 -10 -10 -10 -9 -8 -7 -7 ----------- Run | Yrd Mat Min Exi Min Mat Fac Gar Matter Collected 810 | 200 324 . . 63 178 45 . Remotely . | . . . . . . . . Salvage Created 1478 | . 211 . . 140 902 195 30 Parts 44 | . 15 . . 10 15 2 2 Haulers Intercepted 1 | . 1 . . . . . . Recyclers Shooed . | . . . . . . . . Parts Field Recycled . | . . . . . . . . Retrieved Matter . | . . . . . . . . Parts Self-Destructed . | . . . . . . . . Prevented . | . . . . . . . . Kills | -11 -10 -10 -10 -9 -8 -7 -7 ------- Run | Yrd Mat Min Exi Min Mat Fac Gar Combat Hostiles Destroyed 31 | . 4 . . 4 18 4 1 Melee 8 | . . . . . 6 1 1 Guns 6 | . 4 . . 2 . . . AOE 2 | . . . . 2 . . . Classes Destroyed 12 | . 3 . . 2 5 2 . Worker 3 | . 1 . . 2 . . . Builder 3 | . . . . . 2 1 . Hauler 1 | . 1 . . . . . . Recycler 2 | . . . . . 2 . . Watcher 2 | . . . . . . 2 . Swarmer 4 | . . . . . 3 . 1 Grunt 15 | . 4 . . 1 7 3 . Brawler 2 | . . . . 1 1 . . Sentry 6 | . . . . . 6 . . Hunter 1 | . . . . . 1 . . Programmer 1 | . . . . . . 1 . Assembled 2 | . . . . 2 . . . Best Kill Streak 6 | . 2 . . 2 6 2 1 Combat Bots Only 4 | . 2 . . 2 4 2 1 Max Kills in Single Turn 2 | . 1 . . 2 1 1 1 Gunslinging . | . . . . . . . . Exploded 1 | . . . . 1 . . . Melee 1 | . . . . . 1 1 1 Uniques/NPCs Destroyed . | . . . . . . . . Combat | -11 -10 -10 -10 -9 -8 -7 -7 -------- Run | Yrd Mat Min Exi Min Mat Fac Gar Hostile Shots Fired 248 | . 24 2 . 11 125 67 19 Missed 74 | . 9 2 . 2 33 21 7 Damage Taken 3247 | . 184 . . 246 1307 1326 184 Core 955 | . 37 . . 75 134 569 140 Absorbed by Shields 162 | . . . . . . 162 . Core Remaining (%) 76 | 100 . . . 55 75 . . Volleys Fired 31 | . 21 . . 8 2 . . Largest 2 | . 2 . . 2 2 . . Hottest 46 | . 46 . . 46 46 . . Shots Fired 57 | . 40 . . 14 3 . . Gun 53 | . 40 . . 10 3 . . Cannon . | . . . . . . . . Launcher 4 | . . . . 4 . . . Special . | . . . . . . . . Kinetic 53 | . 40 . . 10 3 . . Thermal . | . . . . . . . . Explosive 4 | . . . . 4 . . . Electromagnetic . | . . . . . . . . Robot Hit Streak 8 | . 8 . . 3 6 . . Robot Miss Streak 3 | . 3 . . 3 . . . Penetration Max . | . . . . . . . . Secondary Targets . | . . . . . . . . Shots Hit Robots 120 | . 26 . . 7 62 22 3 Core Hits 31 | . 10 . . 9 9 1 2 Critical Kills 1 | . . . . . 1 . . Critical Parts Destroyed 11 | . . . . . 9 2 . Critical Strikes 13 | . . . . . 10 2 1 Smash 12 | . . . . . 10 2 . Sever 1 | . . . . . . . 1 Melee Attacks 99 | . . . . . 69 26 4 Impact 95 | . . . . . 69 26 . Slashing 4 | . . . . . . . 4 Piercing . | . . . . . . . . Sneak Attacks 5 | . . . . . 4 1 . Combat Hostiles . | . . . . . . . . Follow-up Attacks 11 | . . . . . 6 5 . Damage Inflicted 4299 | . 376 . . 325 2447 1051 100 Guns 520 | . 376 . . 112 32 . . Cannons . | . . . . . . . . Explosions 213 | . . . . 213 . . . Melee 3561 | . . . . . 2415 1046 100 Ramming 5 | . . . . . . 5 . Kinetic 520 | . 376 . . 112 32 . . Thermal . | . . . . . . . . Explosive 213 | . . . . 213 . . . Electromagnetic . | . . . . . . . . Impact 3461 | . . . . . 2415 1046 . Slashing 100 | . . . . . . . 100 Piercing . | . . . . . . . . Highest Corruption 11 | . 4 4 4 4 1 11 11 Average Corruption 3 | . 3 4 4 4 1 3 11 Corruption Purged . | . . . . . . . . Corruption Blocked . | . . . . . . . . Effects 35 | . 2 4 4 13 1 10 1 Message Errors 11 | . . . 1 5 . 4 1 Matter Fused 3 | . . 1 1 . . 1 . Heat Flow Errors 7 | . 2 . . 2 . 3 . Energy Discharges 2 | . . . 1 . . 1 . Parts Fused 1 | . . . . . 1 . . Data Loss (minor) 5 | . . 3 1 1 . . . Data Loss (major) 1 | . . . . 1 . . . Misfires 2 | . . . . 2 . . . Alerts 2 | . . . . 1 . 1 . Weapon Failures 1 | . . . . 1 . . . Overload Shots . | . . . . . . . . Overflow Damage 1027 | . . . . . 655 372 . Projectiles . | . . . . . . . . Explosions . | . . . . . . . . Melee 1027 | . . . . . 655 372 . Knockbacks 11 | . . . . . 5 6 . Impact 11 | . . . . . 5 6 . Kinetic . | . . . . . . . . Secondary . | . . . . . . . . Self-Inflicted Damage 41 | . . . . 39 . 2 . Shots 1 | . . . . 1 . . . Rammed 1 | . . . . . . 1 . Targets Rammed 1 | . . . . . . 1 . Kicked . | . . . . . . . . Crushed . | . . . . . . . . Highest Temperature 279 | . 279 . . 167 3 119 . Average Temperature 71 | . 86 . . 63 2 49 . Received Heat Transfer 844 | . 105 . . 21 441 277 . Effects 2 | . 2 . . . . . . Interference 2 | . 2 . . . . . . Siege Activations . | . . . . . . . . Robots Corrupted . | . . . . . . . . Combat Hostiles . | . . . . . . . . Parts Fried 23 | . . . . . 20 3 . Impact Corruptions 45 | . . . . . 29 16 . Robots Melted . | . . . . . . . . Combat Hostiles . | . . . . . . . . Parts Melted . | . . . . . . . . Heat Transferred . | . . . . . . . . Parts Sabotaged . | . . . . . . . . Parts Stolen . | . . . . . . . . Parts Stripped . | . . . . . . . . Power Chain Reactions . | . . . . . . . . Alert | -11 -10 -10 -10 -9 -8 -7 -7 ------- Run | Yrd Mat Min Exi Min Mat Fac Gar Peak Influence 329 | . 108 69 . 50 329 322 262 Initial 242 | . . 11 . . 19 92 242 Average 80 | . 41 28 . 17 139 88 246 Maximum Alert Level 1 | . . . . . 1 1 1 Low Security (%) 89 | . 100 100 . 100 72 95 . Level 1 10 | . . . . . 27 4 100 Level 2 . | . . . . . . . . Level 3 . | . . . . . . . . Level 4 . | . . . . . . . . Level 5 . | . . . . . . . . High Security . | . . . . . . . . Max Security . | . . . . . . . . Squads Dispatched 6 | . . . . . 4 2 . Investigation 2 | . . . . . 1 1 . Extermination . | . . . . . . . . Reinforcement 3 | . . . . . 3 . . Assault 1 | . . . . . . 1 . Garrison . | . . . . . . . . Intercept . | . . . . . . . . Searches Triggered . | . . . . . . . . Construction Impeded . | . . . . . . . . Haulers Reinforced . | . . . . . . . . Active Scanning Responses . | . . . . . . . . Cargo Convoy Interrupts . | . . . . . . . . Stealth | -11 -10 -10 -10 -9 -8 -7 -7 --------- Run | Yrd Mat Min Exi Min Mat Fac Gar Distress Signals 2 | . . . . . 2 . . Communications Jammed . | . . . . . . . . Distress Signals . | . . . . . . . . Times Spotted 84 | . 8 2 . 13 25 30 6 Peak Tracking Total 14 | . 3 2 . 14 4 11 6 Tactical Retreats 6 | . . . . 1 . 5 . Traps | -11 -10 -10 -10 -9 -8 -7 -7 ------- Run | Yrd Mat Min Exi Min Mat Fac Gar Traps Triggered 7 | . 3 . . . 1 3 . Indirectly . | . . . . . . . . Trap Hack Attempts . | . . . . . . . . Triggered . | . . . . . . . . Disarmed . | . . . . . . . . Reprogrammed . | . . . . . . . . Reused . | . . . . . . . . Traps Extracted . | . . . . . . . . Installed . | . . . . . . . . Triggered 2 | . . . . . . 2 . Machines | -11 -10 -10 -10 -9 -8 -7 -7 ---------- Run | Yrd Mat Min Exi Min Mat Fac Gar Machines Disabled 1 | . 1 . . . . . . Max in Single Turn 1 | . 1 . . . . . . Garrison Access 1 | . . . . . . 1 . Machines Repaired . | . . . . . . . . Machines Dismantled . | . . . . . . . . Machines Sabotaged . | . . . . . . . . Overloaded Fab Kills . | . . . . . . . . Hacking | -11 -10 -10 -10 -9 -8 -7 -7 --------- Run | Yrd Mat Min Exi Min Mat Fac Gar Machines Accessed 1 | . . . . . . 1 . Terminals . | . . . . . . . . Fabricators . | . . . . . . . . Repair Stations . | . . . . . . . . Recycling Units . | . . . . . . . . Scanalyzers . | . . . . . . . . Garrison Access 1 | . . . . . . 1 . Total Hacks 2 | . . . . . . 2 . Successful 1 | . . . . . . 1 . Failed 1 | . . . . . . 1 . Catastrophic 1 | . . . . . . 1 . Database Lockouts . | . . . . . . . . Manual . | . . . . . . . . Terminals . | . . . . . . . . Fabricators . | . . . . . . . . Repair Stations . | . . . . . . . . Recycling Units . | . . . . . . . . Scanalyzers . | . . . . . . . . Garrison Access 2 | . . . . . . 2 . Terminal Hacks . | . . . . . . . . Fabricator Hacks . | . . . . . . . . Repair Station Hacks . | . . . . . . . . Recycling Unit Hacks . | . . . . . . . . Scanalyzer . | . . . . . . . . Garrison Access Hacks 1 | . . . . . . 1 . Unlock Access 1 | . . . . . . 1 . Unauthorized Hacks . | . . . . . . . . Terminals . | . . . . . . . . Fabricators . | . . . . . . . . Repair Stations . | . . . . . . . . Recycling Units . | . . . . . . . . Scanalyzers . | . . . . . . . . Garrison Access . | . . . . . . . . Data Cores Recovered . | . . . . . . . . Used . | . . . . . . . . Hacking Detections 1 | . . . . . . 1 . Full Trace Events 1 | . . . . . . 1 . Feedback Events . | . . . . . . . . Feedback Blocked . | . . . . . . . . Robot Schematics Acquired . | . . . . . . . . Robots Built . | . . . . . . . . Authchips . | . . . . . . . . Time . | . . . . . . . . Total Robot Build Rating . | . . . . . . . . Part Schematics Acquired . | . . . . . . . . Parts Built . | . . . . . . . . Authchips . | . . . . . . . . Time . | . . . . . . . . Total Part Build Rating . | . . . . . . . . Parts Repaired . | . . . . . . . . Time . | . . . . . . . . Parts Recycled . | . . . . . . . . Recycled Matter . | . . . . . . . . Retrieved Matter . | . . . . . . . . Retrieved Components . | . . . . . . . . Parts Scanalyzed . | . . . . . . . . Part Schematics Acquired . | . . . . . . . . Parts Damaged . | . . . . . . . . Bothacking | -11 -10 -10 -10 -9 -8 -7 -7 ------------ Run | Yrd Mat Min Exi Min Mat Fac Gar Used RIF Installer . | . . . . . . . . Robots Hacked . | . . . . . . . . Non-combat . | . . . . . . . . Combat . | . . . . . . . . Robot Hacks Applied . | . . . . . . . . Relay Couplers Released 2 | . . . . . . 2 . Machine Destruction 2 | . . . . . . 2 . Fabnet Peak Effective % . | . . . . . . . . Robots Rewired . | . . . . . . . . Allies Hacked . | . . . . . . . . Hacks Repelled . | . . . . . . . . Allies | -11 -10 -10 -10 -9 -8 -7 -7 -------- Run | Yrd Mat Min Exi Min Mat Fac Gar Total Allies 4 | . . 3 . 1 . . . Largest Group 3 | . . 3 3 3 . . . Highest-Rated Group 40 | . . 40 40 40 . . . Highest-Rated Ally 31 | . . 16 16 31 . . . Total Orders . | . . . . . . . . Ally Attacks 23 | . . 6 . 17 . . . Total Damage 210 | . . 65 . 145 . . . Kills 3 | . . 2 . 1 . . . Allies Corrupted . | . . . . . . . . Allies Melted . | . . . . . . . . Intel | -11 -10 -10 -10 -9 -8 -7 -7 ------- Run | Yrd Mat Min Exi Min Mat Fac Gar Robot Analysis Total . | . . . . . . . . Derelict Logs Recovered 3 | . . 1 . 2 . . . Drone Launches . | . . . . . . . . Drone Recoveries . | . . . . . . . . Exploration | -11 -10 -10 -10 -9 -8 -7 -7 ------------- Run | Yrd Mat Min Exi Min Mat Fac Gar Turns Passed 3048 | . 547 141 301 484 868 683 24 Spaces Moved 1761 | 1 285 79 189 270 385 526 26 Core 199 | . 1 . . . . 172 26 Treads 1408 | . 275 79 189 270 385 210 . Legs 154 | 1 9 . . . . 144 . Wheels . | . . . . . . . . Hover . | . . . . . . . . Flight . | . . . . . . . . Fastest Speed 50 | 120 120 160 160 160 160 50 50 Average Speed 146 | 120 159 160 160 160 164 116 50 Slowest Speed 260 | 120 250 160 160 160 240 260 50 Overloaded Moves . | . . . . . . . . Propulsion Burnouts . | . . . . . . . . Robots Hopped . | . . . . . . . . Cave-ins Triggered . | . . . . . . . . Exploration Rate (%) 36 | 2 68 23 60 61 45 18 12 Regions Visited 7 Branch Regions 3 Pre-discovered Areas 1 | . . 1 . . . . . Known Exits Taken 1 | . . . . . . 1 . Unknown Exits Taken 6 | 1 1 1 1 1 1 . . Scrap Searched . | . . . . . . . . Spaces Dug . | . . . . . . . . Terrain Destroyed 46 | . . . . 46 . . . Melee . | . . . . . . . . Projectile . | . . . . . . . . AOE 46 | . . . . 46 . . . Terrain Rammed . | . . . . . . . . Walls Destroyed . | . . . . . . . . Machines Disabled . | . . . . . . . . Actions | -11 -10 -10 -10 -9 -8 -7 -7 --------- Run | Yrd Mat Min Exi Min Mat Fac Gar Total 2026 | . 342 94 188 309 501 560 32 Wait 88 | . 14 14 . 28 28 4 . Move 1755 | . 284 78 188 269 384 526 26 Hop . | . . . . . . . . Pick Up 19 | . 6 . . 1 10 2 . Fast Attach 12 | . 5 1 . . 3 3 . Attach 13 | . . . . . 8 3 2 Detach 4 | . 3 . . . . 1 . Swap 6 | . 1 . . 2 3 . . Drop 10 | . 8 1 . 1 . . . Fire 31 | . 21 . . 8 2 . . Melee 87 | . . . . . 63 20 4 Ram 1 | . . . . . . 1 . Kick . | . . . . . . . . Crush . | . . . . . . . . Escape Stasis . | . . . . . . . . Rewire . | . . . . . . . . Trap . | . . . . . . . . Miscellaneous . | . . . . . . . . Route ------- -11/Scrapyard -10/Materials (discovered 2 exits: [*Mat] / [*Min]) -10/Mines (discovered 2 exits: [*Mat] / [*Exi]) -10/Exiles -9/Mines -8/Materials -7/Factory -7/Garrison History --------- Turn | Location | Event 1 | -11/Scrapyard | Discovered new exit (range 0) 1 | -11/Scrapyard | Entered Materials 302 | -10/Materials | Discovered new exit (range 15) 316 | -10/Materials | Build established: Mutant 524 | -10/Materials | Discovered new exit (range 7) 548 | -10/Materials | Entered Mines 560 | -10/Mines | Assisted by bots powering up and referring to "LRC-V3" 585 | -10/Mines | Learned location of Mines (-9) 636 | -10/Mines | Discovered new exit (range 7) 666 | -10/Mines | Deemed a non-threat by the Exiles lab entrance 667 | -10/Mines | Discovered new exit (range 5) 689 | -10/Mines | Entered Exiles 689 | -10/Exiles | Found Exiles lab abandoned 689 | -10/Exiles | Accompanied by 3 allies 977 | -10/Exiles | Discovered new exit (range 10) 990 | -10/Exiles | Entered Mines 990 | -9/Mines | Accompanied by 3 allies 1022 | -9/Mines | Learned Materials security intel 1125 | -9/Mines | Received a Rocket Launcher from a helpful Derelict 1151 | -9/Mines | Assembled infested the area 1156 | -9/Mines | Assisted by a Guerilla fighting off Assembled 1209 | -9/Mines | Lost 4 allies 1247 | -9/Mines | Learned Materials terminal intel 1333 | -9/Mines | Received a Mining Laser from a helpful Derelict 1458 | -9/Mines | Discovered new exit (range 7) 1474 | -9/Mines | Entered Materials 1474 | -8/Materials | Evolved 4 slots: Propulsion x2, Utility x1, Weapon x1 1476 | -8/Materials | Loaded intel: 12 terminal locations 2145 | -8/Materials | Build established: Gladiator 2298 | -8/Materials | Discovered new exit (range 12) 2342 | -8/Materials | Entered Factory 2342 | -7/Factory | Evolved 2 slots: Utility x2 2938 | -7/Factory | Released all parts (6) 2969 | -7/Factory | Lost 6 parts (3n2u1w) 2985 | -7/Factory | System corruption reached 10% 2995 | -7/Factory | Core integrity fell below 50% 2997 | -7/Factory | Core integrity fell below 20% 3025 | -7/Factory | Identified exit to Garrison 3025 | -7/Factory | Entered Garrison 3049 | -7/Garrison | Destroyed by S-27 Virus with Autogun Last Messages --------------- 03002_ The unstable cave ceiling collapses. 03002_ K-01 Serf collects debris. 03012_ U-05 Engineer lays Concrete. 03016_ U-05 Engineer builds a Wall. 03017_ System corrupted: IFF burst signal emitted. 03020_ U-05 Engineer lays Concrete. 03025_ Connecting with Garrison Access... 03025_ Current location identified: Factory >>Unlock Access door unlocked. 03025_ EXIT=UNLOCKED: GARRISON 03025_ ALERT: Suspicious activity at Garrison Access F003. Dispatching Investigation squad. LOCATION=GARRISON GOAL=ESCAPE 03041_ S-27 Virus destroyed. 03043_ Imp. Melee Analysis Suite destroyed. 03047_ XY43FT#2R1U&#QP4E8|ATDJ3R75VQO9YOI3,F 03049_ S-27 Virus Lgt. Nuclear Core severed. Map ----- +----------------------------------------------------+ | ?????????????????????????????????????????????????? | | ?????????????????????????????????????????????????? | | ?????????????????????????????????????????????????? | | ?????????????????????????????????????????????????? | | ?????????????????????????????????????????????????? | | ?????????????????????????????????????????????????? | | ?????????????????????????????????????????????????? | | ?????????????????????????####????????????????????? | | ????????????????? ??????? ????????????????????? | | ?????????????????? ?????? ????????????????????? | | ????????????? ?? ?????? ????????????????????? | | ?????????????# ?# ????? #????????????????????? | | ?????????????# ## ????# #????????????????????? | | ?????????????" ??? "????????????????????? | | ??????????????? ??? "????????????????????? | | ???????????????? ?? "????????????????????? | | ????????????????? ?? "????????????????????? | | ?????????????#????# ?# #????????????????????? | | ?????????????# ## ## #????????????????????? | | ?????????????# #????????????????????? | | ?????????????# #????????????????????? | | ?????????????# s #????????????????????? | | ??????????????# ##""""##ss##????????????????????? | | ????????????????????????# #?????????????????????? | | ????????????????????????# #?????????????????????? | | ????????????????????????#@ #?????????????????????? | | ???????????????????????ss= #?????????????????????? | | ??????????????????????###* #?????????????????????? | | ????????????????????????# #?????????????????????? | | ????????????????????????# ########??????????????? | | ????????????????????????# #??????????????? | | ????????????????????????# #######"???????? | | ????????????????????????######## ? | | ???????????????????????????????# #########??????? | | ???????????????????????????????# #??????????????? | | ???????????????????????????????# #??????????????? | | ???????????????????????????????# #??????????????? | | ???????????????????????????????# ###????????????? | | ???????????????????????????????# #????????????? | | ???????????????????????????????# #????????????? | | ???????????????????????????????# #????????????? | | ???????????????????????????????######????????????? | | ?????????????????????????????????????????????????? | | ?????????????????????????????????????????????????? | | ?????????????????????????????????????????????????? | | ?????????????????????????????????????????????????? | | ?????????????????????????????????????????????????? | | ?????????????????????????????????????????????????? | | ?????????????????????????????????????????????????? | | ?????????????????????????????????????????????????? | +----------------------------------------------------+ Best States ------------- Heat Dissipation 34 Energy Generation 14 Energy Capacity 250 Matter Stores 300 Matter Capacity 300 Sight Range 16 Terrain Scan Density 10 Melee Speed Boost 20 Evasion (%) 55 Targeting Accuracy 5 Melee Accuracy 12 Recoil Reduction 4 Salvage Targeting 1 Item Schematics ----------------- None Robot Schematics ------------------ None Fabricated ------------ Nothing Alien Tech Used ----------------- None Achievements -------------- None Challenges ------------ None Game ------ Seed WeldingMakeshiftMultirail Manual? 0 Play Time 00:22:33 Cumulative 93.3 hours Start 2024.04.04 @ 18:33:35 End 2024.04.04 @ 19:11:16 Sessions 1 Manual Loads 0 Difficulty Rogue Special Mode None Game No. 136 Rogue 136 Adventurer 0 Explorer 0 Win Type - Total 1 Types 1/0/0/0/0/0/0/0/0 Lore% 42 Gallery% 47 Achievement% 41 Wizard Run 0 Options --------- Layout 1 ASCII 0 Keyboard 1 Movement Vi Keybinds 1 Fullscreen 1 Font 32/SmallcapsGlow Map View 50x35 Zoom Use 0% Tactical HUD 1 Map Filters NONE Filters NONE Steam 1 RUN: b42ad910-8f89-4df0-b9be-b16f386936eb